bitfinex-derivatives/quotes_ETHF0:USTF0_20251118
["timestamp","ask_amount","ask_price","bid_price","bid_amount"]
[1763501940123,0.52132,3109.1,3109.0,0.71404283]
[1763501940632,1.34568358,3109.1,3109.0,0.71404283]
[1763501942327,1.34568358,3109.1,3109.0,1.45404283]
[1763501947926,0.82436358,3109.1,3109.0,1.97538283]
[1763501948137,0.52132,3109.1,3109.0,1.23537283]
[1763501948439,3.2078,3109.3,3109.2,1.2613]
[1763501948636,4.53729281,3109.3,3109.2,1.2613]
[1763501948833,4.53729281,3109.3,3109.2,0.74]
[1763501949531,0.52132,3109.1,3109.0,0.71404283]
[1763501949737,1.32952281,3109.1,3109.0,0.71404283]
[1763501949928,1.32952281,3109.1,3109.0,1.45404283]
[1763501950938,1.32486503,3109.1,3109.0,1.45404283]
[1763501952238,1.32486503,3109.1,3109.0,0.71404283]
[1763501957438,1.32486503,3109.1,3109.0,0.30334283]
[1763501957642,1.32486503,3109.1,3109.0,0.71894283]
[1763501958442,0.80354503,3109.1,3109.0,1.45894283]
[1763501958631,0.52132,3109.1,3109.0,1.45894283]
[1763501958832,0.52132,3109.1,3109.0,1.98028283]
[1763501960630,3.2078,3109.3,3109.0,1.98028283]
[1763501960631,3.2078,3109.3,3109.0,0.71894283]
[1763501960931,0.52128,3109.4,3109.3,1.26126]
[1763501962240,0.52125,3109.5,3109.4,1.20496]
[1763501964445,0.52125,3109.5,3109.4,0.6837]
[1763501966355,3.2078,3109.7,3109.5,0.4119]
[1763501966356,0.52123,3109.6,3109.5,0.4119]
[1763501968452,3.2078,3109.7,3109.6,0.6769]
[1763501968656,3.72902,3109.7,3109.6,0.6769]
[1763501968847,0.52123,3109.6,3109.5,0.4119]
[1763501976451,1.31821707,3109.6,3109.5,0.4119]
[1763501977758,1.31821707,3109.6,3109.0,0.71894283]
[1763501977759,0.52132,3109.1,3109.0,0.71894283]
[1763501979356,0.52132,3109.1,3109.0,1.33994283]
[1763501980358,0.52132,3109.1,3109.0,1.86128283]
[1763501983559,0.52132,3109.1,3109.0,1.33994283]
[1763501985167,0.52132,3109.1,3109.0,1.86128283]
[1763501987865,0.52132,3109.1,3109.0,1.33994283]
[1763501988668,0.52132,3109.1,3109.0,1.86128283]
[1763501990170,0.52132,3109.1,3109.0,1.33994283]
[1763501991271,0.52132,3109.1,3109.0,1.86128283]
[1763501999178,0.52132,3109.1,3109.0,1.33994283]
[1763501999473,0.52132,3109.1,3109.0,1.86128283]
[1763502000273,0.52132,3109.1,3109.0,1.33994283]
[1763502001471,1.31589039,3109.1,3109.0,0.71894283]
[1763502004776,1.31589039,3109.1,3109.0,1.81098283]
[1763502004977,3.2078,3109.2,3109.0,3.07636352]
[1763502005170,3.7291,3109.2,3109.1,1.09202]
[1763502005476,4.52408369,3109.2,3109.1,1.09202]
[1763502007076,4.52408369,3109.2,3109.1,0.5707]
[1763502009079,4.52408369,3109.2,3109.1,1.09202]
[1763502009374,4.52408369,3109.2,3109.1,0.5707]
[1763502009375,3.7291,3109.2,3109.1,0.5707]
[1763502012382,0.52132,3109.1,3109.0,0.71894283]
[1763502012579,1.31356274,3109.1,3109.0,0.71894283]
[1763502013080,2.57894343,3109.1,3109.0,0.71894283]
[1763502016086,0.52137,3108.8,3108.7,6.02e-06]
[1763502016275,0.52149,3108.1,3107.8,2.31281393]
[1763502016478,3.72929,3108.1,3107.5,0.408]
[1763502016777,4.52139127,3108.1,3107.5,0.408]
[1763502016979,5.78677196,3108.1,3107.5,0.408]
[1763502017179,5.78677196,3108.1,3108.0,0.41447956]
[1763502017381,4.52139127,3108.1,3108.0,0.98517956]
[1763502017683,3.72929,3108.1,3108.0,0.98517956]
[1763502020076,3.72929,3108.1,3108.0,0.41447956]
[1763502020281,4.99467069,3108.1,3108.0,0.41447956]
[1763502020896,5.8007976,3108.1,3108.0,0.41447956]
[1763502021184,3.72929,3108.1,3108.0,0.41447956]
[1763502023895,3.72929,3108.1,3108.0,0.98517956]
[1763502026396,3.2078,3108.1,3108.0,0.98517956]
[1763502026696,3.2078,3108.1,3108.0,1.50667956]
[1763502027093,3.72929,3108.1,3108.0,1.50667956]
[1763502027408,3.2078,3108.1,3108.0,1.50667956]
[1763502028293,3.72929,3108.1,3108.0,1.50667956]
[1763502029196,3.2078,3108.1,3108.0,1.50667956]
[1763502029790,0.00482602,3108.4,3108.3,0.52145]
[1763502029994,3.2078,3108.5,3108.4,2.32812069]
[1763502032895,3.2078,3108.5,3108.4,1.06274]
[1763502033085,3.2078,3108.5,3108.4,0.5413]
[1763502033885,3.72922,3108.5,3108.4,0.5413]
[1763502034889,3.2078,3108.5,3108.4,1.06274]
[1763502035299,0.52145,3108.4,3108.0,0.41447956]
[1763502035498,0.52145,3108.4,3108.3,0.5413]
[1763502036004,3.2078,3108.5,3108.4,1.06274]
[1763502037696,3.72922,3108.5,3108.4,1.06274]
[1763502037999,3.2078,3108.5,3108.4,1.06274]
[1763502039805,3.2078,3108.5,3108.4,2.32812069]
[1763502042106,3.72922,3108.5,3108.4,2.32812069]
[1763502042511,3.2078,3108.5,3108.4,2.32812069]
[1763502042706,3.72922,3108.5,3108.4,2.32812069]
[1763502043806,3.72922,3108.5,3108.4,1.06274]
[1763502045412,3.2078,3108.5,3108.4,1.06274]
[1763502045609,0.00482602,3108.8,3108.7,1.06269]
[1763502045813,0.00482602,3108.8,3108.7,2.32807069]
[1763502046108,0.52619602,3108.8,3108.7,2.32807069]
[1763502048615,0.00482602,3108.8,3108.7,2.32807069]
[1763502048811,0.52619602,3108.8,3108.7,2.32807069]
[1763502050509,0.00482602,3108.8,3108.7,2.32807069]
[1763502050717,0.52619602,3108.8,3108.7,2.32807069]
[1763502051714,3.2078,3109.3,3109.2,0.5413]
[1763502051907,3.72909,3109.3,3109.2,1.80668069]
[1763502052409,3.72909,3109.3,3109.2,0.5413]
[1763502053210,3.72909,3109.3,3109.2,1.0626]
[1763502053413,3.72909,3109.3,3109.2,0.5413]
[1763502053810,3.72909,3109.3,3109.2,1.0626]
[1763502054711,3.72909,3109.3,3109.2,0.5413]
[1763502055914,3.72909,3109.3,3109.2,1.0626]
[1763502056217,3.72909,3109.3,3109.2,0.5413]
[1763502056718,3.72909,3109.3,3109.2,1.0626]
[1763502057120,3.72909,3109.3,3109.2,0.5413]
[1763502057619,3.72909,3109.3,3109.2,1.0626]
[1763502058006,3.72909,3109.3,3109.2,0.5413]
[1763502058210,3.72909,3109.3,3109.2,1.0626]
[1763502059520,3.72909,3109.3,3109.2,0.5413]
[1763502060321,0.52132,3109.1,3109.0,0.3356]
[1763502061927,0.5214,3108.6,3108.5,0.85701]
[1763502062417,0.52136,3108.9,3108.8,1.03837]
[1763502062722,0.52136,3108.9,3108.8,0.517]
[1763502063317,0.52139,3108.7,3108.6,1.78678069]
[1763502063622,0.52137,3108.8,3108.7,1.03838]
[1763502065624,0.52137,3108.8,3108.7,0.517]
[1763502065825,0.5214,3108.6,3108.5,0.8526]
[1763502067418,0.5214,3108.6,3108.5,0.3356]
[1763502068317,1.34262456,3108.6,3108.5,0.3356]
[1763502068821,0.5214,3108.6,3108.5,0.8526]
[1763502069521,3.72917,3108.9,3108.8,1.03837]
[1763502070030,3.2078,3108.9,3108.8,1.03837]
[1763502071431,0.52134,3109.0,3108.9,1.03835]
[1763502073221,3.2078,3109.3,3109.2,0.5213]
[1763502073416,3.72909,3109.3,3109.2,1.0383]
[1763502075232,4.55046845,3109.3,3109.2,1.0383]
[1763502075533,4.55046845,3109.3,3109.2,0.517]
[1763502077238,3.72909,3109.3,3109.2,0.517]
[1763502077627,3.72909,3109.3,3109.2,1.0383]
[1763502077930,3.72909,3109.3,3109.2,0.517]
[1763502078132,4.55045727,3109.3,3109.2,0.517]
[1763502078334,3.72909,3109.3,3109.2,0.517]
[1763502078934,3.72909,3109.3,3109.2,1.0383]
[1763502079931,0.52132,3109.1,3109.0,0.307]
[1763502082627,0.52132,3109.1,3109.0,0.7825]
[1763502082935,0.52131,3109.2,3109.1,0.4755]
[1763502083137,1.34269893,3109.2,3109.1,0.4755]
[1763502083338,0.82138893,3109.2,3109.1,2.29111247]
[1763502083531,3.7291,3109.3,3109.2,0.5213]
[1763502083736,4.16422961,3109.3,3109.2,0.9968]
[1763502088845,4.16422961,3109.3,3109.2,0.4755]
[1763502092241,3.64292961,3109.3,3109.0,0.307]
[1763502092452,0.52132,3109.1,3109.0,0.7771]
[1763502092633,0.52132,3109.1,3109.0,0.307]
[1763502092839,0.5214,3108.6,3108.3,0.52144]
[1763502093141,0.5214,3108.6,3108.2,0.52147]
[1763502093339,0.5214,3108.6,3108.0,1.70877203]
[1763502093540,1.3428958,3108.6,3108.0,0.41447956]
[1763502094140,1.3428958,3108.6,3108.0,0.93597956]
[1763502094345,1.3428958,3108.6,3108.0,0.41447956]
[1763502094646,0.52149,3108.1,3108.0,0.41447956]
[1763502096645,0.52149,3108.1,3108.0,0.93597956]
[1763502096848,0.52149,3108.1,3108.0,0.41447956]
[1763502097952,0.52149,3108.1,3108.0,1.40607956]
[1763502098344,3.2078,3108.3,3108.2,0.99157]
[1763502099753,3.72925,3108.3,3108.2,0.99157]
[1763502100051,3.2078,3108.3,3108.2,0.99157]
[1763502100952,0.52141,3108.6,3108.5,0.261]
[1763502101152,0.52141,3108.6,3108.5,0.7311]
[1763502101948,0.52139,3108.7,3108.6,0.4701]
[1763502105047,0.52149,3108.1,3108.0,0.41447956]
[1763502105254,3.72929,3108.1,3108.0,0.41447956]
[1763502109152,3.72929,3108.1,3108.0,0.88457956]
[1763502109550,3.2078,3108.1,3108.0,0.88457956]
[1763502110750,3.72929,3108.1,3108.0,0.88457956]
[1763502110951,3.2078,3108.1,3108.0,1.40607956]
[1763502111148,3.72929,3108.1,3108.0,1.40607956]
[1763502111347,3.72929,3108.1,3108.0,0.88457956]
[1763502112659,3.72929,3108.1,3108.0,1.40607956]
[1763502113060,3.2078,3108.1,3108.0,1.40607956]
[1763502114355,3.2078,3108.1,3108.0,0.88457956]
[1763502114555,3.72929,3108.1,3108.0,1.40607956]
[1763502115061,3.72929,3108.1,3108.0,0.88457956]
[1763502115361,3.72929,3108.1,3108.0,1.40607956]
[1763502119263,3.2078,3108.1,3108.0,1.40607956]
[1763502120465,3.307,3108.8,3108.4,0.3942]
[1763502120466,3.72922,3108.5,3108.4,0.3942]
[1763502121767,0.52141,3108.6,3108.4,2.20993247]
[1763502121963,3.72915,3108.9,3108.8,0.3942]
[1763502122266,4.54955818,3108.9,3108.8,0.3942]
[1763502122862,3.72915,3108.9,3108.8,0.3942]
[1763502123964,3.2078,3108.9,3108.8,0.3942]
[1763502124165,3.2078,3108.9,3108.8,0.91557]
[1763502124766,3.2078,3108.9,3108.8,2.18070835]
[1763502125965,0.52133,3109.1,3108.8,1.26513835]
[1763502126265,0.52132,3109.1,3109.0,0.2554]
[1763502126463,0.52132,3109.1,3109.0,1.17093]
[1763502127270,0.52132,3109.1,3109.0,0.6496]
[1763502128063,0.52132,3109.1,3109.0,0.2554]
[1763502128665,0.52132,3109.1,3109.0,0.6496]
[1763502129575,0.52132,3109.1,3109.0,0.2554]
[1763502132375,0.52132,3109.1,3109.0,0.77674]
[1763502132580,0.52132,3109.1,3109.0,1.17094]
[1763502135673,0.52132,3109.1,3109.0,2.43607835]
[1763502137973,0.52128,3109.4,3109.3,0.91549]
[1763502138177,0.52125,3109.5,3109.4,0.3942]
[1763502138568,0.00482602,3109.6,3109.5,0.6496]
[1763502138765,0.00482602,3109.6,3109.5,1.17085]
[1763502149506,0.52605602,3109.6,3109.5,0.6496]
[1763502149801,0.52605602,3109.6,3109.5,1.17085]
[1763502150193,0.00482602,3109.6,3109.5,2.43598835]
[1763502150405,0.00482602,3109.6,3109.5,1.91473835]
[1763502150703,0.00482602,3109.6,3109.5,2.43598835]
[1763502153606,0.52605602,3109.6,3109.5,0.6496]
[1763502153802,0.52605602,3109.6,3109.5,0.2554]
[1763502156109,3.73385602,3109.6,3109.5,0.2554]
[1763502156309,4.55305853,3109.6,3109.5,0.2554]
[1763502157306,3.73385602,3109.6,3109.5,0.2554]
[1763502158604,3.73385602,3109.6,3109.5,0.6334]
[1763502163206,3.73385602,3109.6,3109.5,0.2554]
[1763502165514,3.73385602,3109.6,3109.5,1.15465]
[1763502167312,4.55434527,3109.6,3109.5,1.15465]
[1763502167607,4.55434527,3109.6,3109.5,0.6334]
[1763502167912,4.55434527,3109.6,3109.5,1.15465]
[1763502168114,3.73385602,3109.6,3109.5,1.15465]
[1763502168311,4.55439684,3109.6,3109.5,1.15465]
[1763502168812,4.55439684,3109.6,3109.5,0.77665]
[1763502169215,4.55439684,3109.6,3109.5,1.15465]
[1763502172213,4.55444035,3109.6,3109.5,1.15465]
[1763502173220,3.21262602,3109.6,3109.5,1.15465]
[1763502173618,0.52605602,3109.6,3109.5,1.15465]
[1763502179516,1.34696222,3109.6,3109.5,1.15465]
[1763502180023,1.34696222,3109.6,3109.5,0.6334]
[1763502181019,1.34696222,3109.6,3109.5,1.15465]
[1763502182325,1.34696222,3109.6,3109.5,0.6334]
[1763502182534,1.34696222,3109.6,3109.5,1.15465]
[1763502183131,1.34696222,3109.6,3109.5,2.41978835]
[1763502184132,1.34696222,3109.6,3109.5,1.89853835]
[1763502184822,1.34696222,3109.6,3109.5,1.15465]
[1763502185120,1.34696222,3109.6,3109.5,0.6334]
[1763502185430,1.34696222,3109.6,3109.5,0.2554]
[1763502185631,4.55476222,3109.6,3109.5,0.2554]
[1763502185827,0.52132,3109.1,3109.0,0.2554]
[1763502186029,3.72912,3109.1,3109.0,0.2554]
[1763502186224,0.5214,3108.6,3108.5,3.4632]
[1763502187127,0.5214,3108.6,3108.5,0.2554]
[1763502187321,3.7292,3108.6,3108.5,0.2554]
[1763502190023,3.7292,3108.6,3108.5,0.5788]
[1763502194132,3.7292,3108.6,3108.5,1.10022]
[1763502195524,0.5214,3108.6,3108.5,1.10022]
[1763502195725,0.5214,3108.6,3108.5,2.3937495]
[1763502195925,0.52139,3108.7,3108.6,0.84479]
[1763502196936,0.52149,3108.1,3108.0,0.41447956]
[1763502197232,3.72929,3108.1,3108.0,0.41447956]
[1763502198735,3.72929,3108.1,3108.0,0.00377956]
[1763502198926,0.52154,3107.8,3107.7,0.00482602]
[1763502199832,0.52498543,3107.8,3107.7,0.00838643]
[1763502200832,0.52166,3107.1,3107.0,0.206]
[1763502201035,3.72946,3107.1,3107.0,0.206]
[1763502201338,0.52174,3106.6,3106.3,0.52179]
[1763502201538,3.72954,3106.6,3106.5,0.5382]
[1763502201843,3.72954,3106.6,3106.5,0.54113392]
[1763502202433,3.2078,3106.6,3106.5,1.06289392]
[1763502202737,3.72954,3106.6,3106.5,0.20893392]
[1763502203426,3.2078,3106.6,3106.5,1.06049392]
[1763502203935,3.2078,3106.6,3106.5,0.53873392]
[1763502204337,3.72954,3106.6,3106.5,0.53873392]
[1763502204536,3.2078,3106.6,3106.5,1.06049392]
[1763502205036,0.52652602,3106.9,3106.6,0.52173]
[1763502205238,0.52171,3106.8,3106.7,0.3322]
[1763502206231,0.52174,3106.6,3106.5,0.53873392]
[1763502208137,0.52174,3106.6,3106.5,1.06049392]
[1763502209344,0.52173,3106.7,3106.6,0.85394]
[1763502210243,0.52173,3106.7,3106.6,0.3322]
[1763502210542,0.52171,3106.8,3106.6,0.85394]
[1763502210742,0.00482602,3106.9,3106.8,0.82071]
[1763502211134,0.52651602,3106.9,3106.8,0.299]
[1763502211342,0.52172,3106.7,3106.6,0.82074]
[1763502213539,0.52171,3106.8,3106.7,0.52171]
[1763502213740,0.00482602,3106.9,3106.8,0.82071]
[1763502216531,0.52651602,3106.9,3106.8,0.82071]
[1763502217245,0.00482602,3106.9,3106.8,0.82071]
[1763502219550,0.52174,3106.6,3106.5,0.20653392]
[1763502219846,3.72954,3106.6,3106.5,0.20653392]
[1763502221148,10.5403801,3106.6,3106.2,0.00482602]
[1763502221336,0.52191,3105.6,3105.3,0.52195]
[1763502221537,4.54089115,3105.6,3105.5,0.4889]
[1763502222256,4.02199424,3105.6,3105.5,0.49123506]
[1763502222548,0.00301309,3105.6,3105.5,1.01315506]
[1763502222847,0.52196,3105.3,3105.2,0.01334602]
[1763502223050,3.73273309,3105.6,3105.5,0.1891]
[1763502223246,4.54358194,3105.6,3105.5,0.4881]
[1763502223748,3.73273309,3105.6,3105.5,0.49226259]
[1763502224154,4.54351938,3105.6,3105.5,0.49226259]
[1763502225149,4.54351938,3105.6,3105.5,0.19326259]
[1763502228349,0.81379938,3105.6,3105.5,0.49226259]
[1763502228555,0.00301309,3105.6,3105.5,1.01418259]
[1763502230361,3.2078,3106.1,3106.0,0.4881]
[1763502230555,3.72962,3106.1,3106.0,1.00994]
[1763502231259,0.52485853,3106.1,3106.0,1.00994]
[1763502232459,0.00303853,3106.1,3106.0,1.00994]
[1763502233865,0.52485853,3106.1,3106.0,1.00994]
[1763502235265,0.00303853,3106.1,3106.0,1.00994]
[1763502236369,0.52485853,3106.1,3106.0,1.00994]
[1763502236961,0.52485853,3106.1,3106.0,0.4881]
[1763502237164,0.52485853,3106.1,3106.0,1.00994]
[1763502238467,0.52485853,3106.1,3106.0,0.4881]
[1763502239371,0.00303853,3106.1,3106.0,1.00994]
[1763502241768,3.21262602,3106.9,3106.8,0.2891]
[1763502241968,0.00482602,3106.9,3106.8,0.8108]
[1763502242176,2.602e-05,3106.9,3106.8,0.8108]
[1763502242373,3.2078,3107.4,3107.3,0.81072]
[1763502242575,1.72730307,3108.1,3107.0,0.1766]
[1763502242576,0.52157,3107.6,3107.5,0.4657]
[1763502242774,3.2078,3107.8,3107.7,0.81065]
[1763502242973,3.21117412,3107.8,3107.7,0.81399899]
[1763502244580,3.21117412,3107.8,3107.7,0.29244899]
[1763502245066,3.21117412,3107.8,3107.7,0.81399899]
[1763502249785,3.73271412,3107.8,3107.7,0.29244899]
[1763502250379,3.21117412,3107.8,3107.7,0.81399899]
[1763502251970,3.73271412,3107.8,3107.7,0.52489899]
[1763502252173,3.73271412,3107.8,3107.7,0.81399899]
[1763502253681,3.21117412,3107.8,3107.7,0.81399899]
[1763502254089,3.73271412,3107.8,3107.7,0.81399899]
[1763502254386,3.21117412,3107.8,3107.7,0.81399899]
[1763502257590,3.73271412,3107.8,3107.7,4.899e-05]
[1763502258884,9.73271412,3107.8,3107.7,4.899e-05]
[1763502259085,0.52165,3107.1,3106.7,3.2078]
[1763502259388,0.52165,3107.1,3106.5,0.69836]
[1763502259389,0.52174,3106.6,3106.5,0.69836]
[1763502260089,0.52172,3106.8,3106.5,0.70211746]
[1763502260293,0.52173,3106.7,3106.5,0.70211746]
[1763502260489,0.52173,3106.7,3106.6,0.52174]
[1763502261291,0.52174,3106.6,3106.5,0.00215746]
[1763502263986,3.2078,3106.7,3106.0,0.1891]
[1763502263987,0.52182,3106.1,3106.0,0.1891]
[1763502264188,3.72962,3106.1,3106.0,0.1891]
[1763502264394,3.72962,3106.1,3106.0,0.97514]
[1763502264986,3.72962,3106.1,3106.0,0.45661526]
[1763502265384,3.72962,3106.1,3106.0,0.97845526]
[1763502266093,3.72962,3106.1,3106.0,0.45661526]
[1763502266489,0.52182,3106.1,3106.0,0.45661526]
[1763502268395,0.52182,3106.1,3106.0,0.97845526]
[1763502270305,0.52181,3106.2,3106.1,0.78601]
[1763502271402,0.52181,3106.2,3106.1,0.2642]
[1763502272502,0.52181,3106.2,3106.1,0.80082]
[1763502272697,0.52181,3106.2,3106.1,0.279]
[1763502273202,0.52182,3106.1,3106.0,0.99325526]
[1763502275200,0.52182,3106.1,3106.0,0.71425526]
[1763502275400,0.52182,3106.1,3106.0,0.19241526]
[1763502275802,0.52182,3106.1,3106.0,0.47141526]
[1763502276199,0.52182,3106.1,3106.0,0.99325526]
[1763502277105,3.72962,3106.1,3106.0,0.99325526]
[1763502277802,3.2078,3106.1,3106.0,0.99325526]
[1763502278507,3.72962,3106.1,3106.0,0.99325526]
[1763502279401,0.00482602,3106.4,3106.0,0.99325526]
[1763502279402,0.00482602,3106.4,3106.3,0.80079]
[1763502279709,0.00482602,3106.4,3106.3,2.06846163]
[1763502281211,0.52659602,3106.4,3106.3,1.54667163]
[1763502282811,0.52659602,3106.4,3106.3,2.06846163]
[1763502286614,0.52659602,3106.4,3106.3,1.54667163]
[1763502287009,0.52659602,3106.4,3106.3,2.06846163]
[1763502287509,0.52659602,3106.4,3106.3,1.54667163]
[1763502287710,0.52659602,3106.4,3106.3,2.06846163]
[1763502291512,0.52187,3105.8,3105.7,0.00482602]
[1763502291810,3.72967,3105.8,3105.7,0.00482602]
[1763502292014,4.52381523,3105.8,3105.7,2.602e-05]
[1763502292205,0.52191,3105.6,3105.0,0.1766]
[1763502292401,0.52551811,3105.6,3105.5,0.17979252]
[1763502296721,0.52551811,3105.6,3105.5,0.00319252]
[1763502296904,0.79670277,3105.6,3105.0,0.1766]
[1763502297111,3.72979,3105.1,3105.0,0.1766]
[1763502297910,3.72979,3105.1,3105.0,0.17885305]
[1763502298310,3.72979,3105.1,3105.0,0.00225305]
[1763502298622,3.72979,3105.1,3105.0,0.14765305]
[1763502300212,4.99746163,3105.1,3105.0,0.14765305]
[1763502300414,3.99965836,3105.1,3104.0,0.2468]
[1763502300711,0.52216,3104.1,3104.0,0.3922]
[1763502301114,3.2078,3104.2,3104.1,0.76896]
[1763502301515,3.72994,3104.2,3104.1,0.24918128]
[1763502306018,3.2078,3104.2,3104.1,0.77134128]
[1763502306417,0.52692602,3104.5,3104.3,0.52211]
[1763502306616,0.52692602,3104.5,3104.4,1.51447163]
[1763502306820,0.52213,3104.3,3104.2,0.2468]
[1763502307523,0.52213,3104.3,3104.2,0.76894]
[1763502307925,0.52692602,3104.5,3104.4,0.2468]
[1763502308425,0.52692602,3104.5,3104.4,0.76891]
[1763502308619,0.00482602,3104.5,3104.4,0.76891]
[1763502309020,0.52691602,3104.5,3104.4,0.2468]
[1763502309521,0.52691602,3104.5,3104.4,0.76891]
[1763502309825,0.00482602,3104.5,3104.4,0.76891]
[1763502310129,0.52691602,3104.5,3104.4,0.2468]
[1763502310426,0.52691602,3104.5,3104.4,0.76891]
[1763502310819,0.00482602,3104.5,3104.4,0.76891]
[1763502312424,0.52691602,3104.5,3104.4,0.76891]
[1763502312824,0.52214,3104.3,3104.2,0.2468]
[1763502313322,0.52211,3104.4,3104.3,0.52212]
[1763502313530,0.52211,3104.4,3103.8,1.21462667]
[1763502313824,0.52211,3104.4,3104.3,0.2468]
[1763502314730,0.52211,3104.4,3104.3,0.24988964]
[1763502314932,0.52228,3103.4,3103.0,0.1454]
[1763502315125,0.52232,3103.2,3103.0,0.1454]
[1763502315433,3.2078,3103.1,3103.0,0.1454]
[1763502315722,4.50572539,3103.1,3102.0,0.1454]
[1763502315922,3.2078,3102.3,3102.2,0.2468]
[1763502316126,0.5224,3102.7,3102.5,0.1454]
[1763502316330,0.52239,3102.7,3102.5,0.1454]
[1763502317332,0.52248,3102.2,3102.0,0.14847057]
[1763502317628,3.2078,3102.1,3102.0,0.39527057]
[1763502319233,3.2078,3102.1,3102.0,0.14847057]
[1763502320228,3.2078,3102.1,3102.0,0.39527057]
[1763502320730,3.2078,3102.1,3102.0,7.96847057]
[1763502321334,3.2078,3102.1,3102.0,8.21527057]
[1763502322122,3.2078,3102.1,3102.0,8.21627057]
[1763502322526,0.52246,3102.4,3102.0,0.39527057]
[1763502322726,3.2078,3102.5,3102.4,0.2863]
[1763502323331,3.2078,3102.5,3102.4,0.80875]
[1763502324229,3.2078,3102.5,3102.4,0.2863]
[1763502325034,3.2078,3102.5,3102.4,0.80875]
[1763502325439,3.2078,3102.5,3102.4,0.2863]
[1763502325630,3.73023,3102.5,3102.4,0.2863]
[1763502326033,0.52248,3102.2,3102.1,0.2863]
[1763502326234,0.52248,3102.2,3102.1,8.1073]
[1763502326439,0.52246,3102.4,3102.3,0.2863]
[1763502326645,0.52246,3102.4,3102.3,8.1073]
[1763502326939,3.2078,3102.5,3102.4,0.2863]
[1763502327141,3.73023,3102.5,3102.4,8.62875]
[1763502327441,3.73023,3102.5,3102.4,8.1073]
[1763502327935,3.73023,3102.5,3102.4,0.2863]
[1763502328142,3.73023,3102.5,3102.4,8.1073]
[1763502329144,3.73023,3102.5,3102.4,0.2863]
[1763502329338,3.73023,3102.5,3102.4,6.603]
[1763502329535,3.73023,3102.5,3102.4,6.8721]
[1763502330748,3.73023,3102.5,3102.4,0.2691]
[1763502330939,3.73023,3102.5,3102.4,6.8561]
[1763502334543,3.2078,3102.5,3102.4,7.37855]
[1763502334747,3.21263387,3102.9,3102.8,0.79148]
[1763502335447,3.73499387,3102.9,3102.8,0.79148]
[1763502335841,3.21263387,3102.9,3102.8,0.79148]
[1763502336243,0.52241,3102.7,3102.5,0.1663]
[1763502336443,3.73499387,3102.9,3102.8,0.2691]
[1763502336653,3.73499387,3102.9,3102.8,0.79148]
[1763502336945,3.73499387,3102.9,3102.8,8.61048]
[1763502337150,3.73499387,3102.9,3102.8,8.0881]
[1763502337347,3.73499387,3102.9,3102.8,8.61048]
[1763502338143,3.21263387,3102.9,3102.8,8.61048]
[1763502339140,3.21263387,3102.9,3102.8,0.79148]
[1763502339448,3.21263387,3102.9,3102.8,7.72248]
[1763502339649,3.21263387,3102.9,3102.8,8.61148]
[1763502340043,3.21263387,3102.9,3102.8,0.79148]
[1763502340345,3.21263387,3102.9,3102.8,8.61148]
[1763502340647,0.00483387,3102.9,3102.8,8.61148]
[1763502340851,0.00245599,3103.1,3103.0,0.95774]
[1763502341353,3.73002,3103.8,3103.7,0.2691]
[1763502341553,3.73002,3103.8,3103.7,5.8291]
[1763502342152,3.73404198,3103.8,3103.7,5.8291]
[1763502342352,3.73404198,3103.8,3103.7,6.35133]
[1763502342748,3.73404198,3103.8,3103.7,5.8291]
[1763502343145,3.73404198,3103.8,3103.7,4.7891]
[1763502343548,3.73404198,3103.8,3103.7,0.2691]
[1763502343954,3.73404198,3103.8,3103.7,1.37533]
[1763502344653,3.73403198,3103.8,3103.7,0.2691]
[1763502344954,3.73403198,3103.8,3103.7,2.6541]
[1763502346049,0.52224,3103.6,3103.5,0.4354]
[1763502346249,0.52224,3103.6,3103.5,0.1663]
[1763502346552,0.52224,3103.6,3103.5,1.9163]
[1763502347056,0.52224,3103.6,3103.5,0.1663]
[1763502347251,0.52224,3103.6,3103.5,1.9323]
[1763502347754,0.52224,3103.6,3103.5,0.1663]
[1763502347952,0.52224,3103.6,3103.5,1.9313]
[1763502348155,0.52224,3103.6,3103.5,2.7693]
[1763502348552,0.52224,3103.6,3103.5,0.4354]
[1763502348853,0.52224,3103.6,3103.5,2.0794]
[1763502349759,0.52224,3103.6,3103.5,2.60166]
[1763502350555,0.52224,3103.6,3103.5,2.0794]
[1763502351347,0.52224,3103.6,3103.5,8.2504]
[1763502352655,0.52224,3103.6,3103.5,8.77266]
[1763502353958,3.21182198,3103.8,3103.7,0.79133]
[1763502354851,3.73403198,3103.8,3103.7,0.79133]
[1763502355053,3.73403198,3103.8,3103.7,0.2691]
[1763502355453,3.73403198,3103.8,3103.7,0.79133]
[1763502355758,3.73403198,3103.8,3103.7,0.2691]
[1763502356161,3.73403198,3103.8,3103.7,7.7061]
[1763502357761,3.73403198,3103.8,3103.7,0.2691]
[1763502358058,3.73403198,3103.8,3103.7,8.0821]
[1763502360763,3.73403198,3103.8,3103.7,0.2691]
[1763502360957,3.73403198,3103.8,3103.7,8.0811]
[1763502362352,3.73403198,3103.8,3103.7,8.60333]
[1763502362353,3.21182198,3103.8,3103.7,8.60333]
[1763502362564,0.00402198,3103.8,3103.7,8.60333]
[1763502362766,2.198e-05,3103.8,3103.7,8.60333]
[1763502362958,3.2078,3104.2,3104.1,0.79456]
[1763502363152,0.52208,3104.6,3104.5,0.52209]
[1763502363357,0.52208,3104.6,3104.5,8.51389]
[1763502363957,0.52208,3104.6,3104.5,7.9918]
[1763502364362,0.52601803,3104.6,3104.5,8.51624053]
[1763502364967,0.52601803,3104.6,3104.5,7.35224053]
[1763502365170,0.52601803,3104.6,3104.5,6.27715053]
[1763502366764,0.52601803,3104.6,3104.5,6.79924053]
[1763502367157,0.52601803,3104.6,3104.5,0.95524053]
[1763502367361,0.52601803,3104.6,3104.5,4.60424053]
[1763502367974,0.52601803,3104.6,3104.5,6.33724053]
[1763502369468,0.52601803,3104.6,3104.5,0.95524053]
[1763502369658,0.52601803,3104.6,3104.5,4.60424053]
[1763502369864,0.52601803,3104.6,3104.5,6.33724053]
[1763502372167,0.52601803,3104.6,3104.5,0.43315053]
[1763502372369,0.52601803,3104.6,3104.5,8.76624053]